[Event "Early-Titled-Tuesday-Blitz-April-16-2024"]
[Site "Chess.com"]
[Date "2024.04.16"]
[Round "11"]
[White "Sanyura"]
[Black "vovachesss"]
[Result "0-1"]
[WhiteElo "2608"]
[BlackElo "2763"]
[TimeControl "180+1"]
[EndTime "10:11:34 PDT"]
[Termination "vovachesss won on time"]

1. Nf3 {[%clk 0:02:52.7]} 1... d5 {[%clk 0:02:59.5]} 2. g3 {[%clk 0:02:53]} 2...
Nd7 {[%clk 0:02:59.4]} 3. Bg2 {[%clk 0:02:53]} 3... e5 {[%clk 0:02:59.5]} 4. d3
{[%clk 0:02:53.7]} 4... Ngf6 {[%clk 0:02:59.9]} 5. O-O {[%clk 0:02:54.3]} 5...
c6 {[%clk 0:03:00.3]} 6. e4 {[%clk 0:02:54.8]} 6... dxe4 {[%clk 0:03:00.2]} 7.
dxe4 {[%clk 0:02:55.7]} 7... Bc5 {[%clk 0:03:00.4]} 8. Qe2 {[%clk 0:02:55.3]}
8... O-O {[%clk 0:03:00.5]} 9. a4 {[%clk 0:02:52.4]} 9... a5 {[%clk 0:03:00.6]}
10. Nbd2 {[%clk 0:02:52.3]} 10... Qe7 {[%clk 0:03:00.8]} 11. Nc4 {[%clk
0:02:50.3]} 11... b6 {[%clk 0:02:55.2]} 12. b3 {[%clk 0:02:42.1]} 12... Ba6
{[%clk 0:02:55.2]} 13. Bb2 {[%clk 0:02:42.7]} 13... Rfe8 {[%clk 0:02:55.7]} 14.
h3 {[%clk 0:02:39.9]} 14... h6 {[%clk 0:02:51.7]} 15. Rad1 {[%clk 0:02:37.4]}
15... Qe6 {[%clk 0:02:50.4]} 16. Rd2 {[%clk 0:02:36.1]} 16... Bb4 {[%clk
0:02:08.7]} 17. Rdd1 {[%clk 0:02:25.7]} 17... Bf8 {[%clk 0:01:55.9]} 18. Nh4
{[%clk 0:01:44.6]} 18... Nc5 {[%clk 0:01:49.4]} 19. Rfe1 {[%clk 0:01:26.9]}
19... Nxa4 {[%clk 0:01:48.4]} 20. Ba1 {[%clk 0:01:25.1]} 20... Nc5 {[%clk
0:01:47.7]} 21. Bf1 {[%clk 0:01:20.5]} 21... a4 {[%clk 0:01:47.1]} 22. Qe3
{[%clk 0:01:20.2]} 22... axb3 {[%clk 0:01:45.9]} 23. cxb3 {[%clk 0:01:21.1]}
23... Ncxe4 {[%clk 0:01:36.9]} 24. Qf3 {[%clk 0:00:57.4]} 24... Ng5 {[%clk
0:01:12.6]} 25. Qg2 {[%clk 0:00:44.5]} 25... e4 {[%clk 0:01:13.1]} 26. Nxb6
{[%clk 0:00:38.2]} 26... Bxf1 {[%clk 0:01:13.3]} 27. Rxf1 {[%clk 0:00:37.2]}
27... Ra2 {[%clk 0:01:09.6]} 28. Nc4 {[%clk 0:00:33.6]} 28... Nxh3+ {[%clk
0:01:03]} 29. Kh1 {[%clk 0:00:25.4]} 29... Bc5 {[%clk 0:01:00.7]} 30. Bd4 {[%clk
0:00:16.1]} 30... Bxd4 {[%clk 0:00:49.5]} 31. Rxd4 {[%clk 0:00:17]} 31... Ng4
{[%clk 0:00:50]} 32. Nd2 {[%clk 0:00:11.1]} 32... e3 {[%clk 0:00:31.4]} 33. Re4
{[%clk 0:00:09.8]} 33... Nhxf2+ {[%clk 0:00:27.8]} 0-1

[Event "Early-Titled-Tuesday-Blitz-April-16-2024"]
[Site "Chess.com"]
[Date "2024.04.16"]
[Round "11"]
[White "LuisFSiles"]
[Black "RantomOpening"]
[Result "1-0"]
[WhiteElo "2379"]
[BlackElo "2495"]
[TimeControl "180+1"]
[EndTime "10:11:34 PDT"]
[Termination "LuisFSiles won by resignation"]

1. e4 {[%clk 0:03:00.9]} 1... c5 {[%clk 0:02:52.9]} 2. Nf3 {[%clk 0:03:00.5]}
2... e6 {[%clk 0:02:52.9]} 3. c3 {[%clk 0:03:00.5]} 3... Nf6 {[%clk 0:02:51.3]}
4. e5 {[%clk 0:03:00.2]} 4... Nd5 {[%clk 0:02:51.4]} 5. Bc4 {[%clk 0:03:00.9]}
5... d6 {[%clk 0:02:47.7]} 6. d4 {[%clk 0:03:00.8]} 6... cxd4 {[%clk 0:02:42.5]}
7. cxd4 {[%clk 0:03:01.7]} 7... dxe5 {[%clk 0:02:42.7]} 8. dxe5 {[%clk
0:02:52.7]} 8... Be7 {[%clk 0:02:41.5]} 9. O-O {[%clk 0:02:51.7]} 9... O-O
{[%clk 0:02:40.8]} 10. Qe2 {[%clk 0:02:51.8]} 10... Bd7 {[%clk 0:02:33.7]} 11.
Rd1 {[%clk 0:02:48.4]} 11... Bc6 {[%clk 0:02:29.9]} 12. a3 {[%clk 0:02:46.1]}
12... Qc7 {[%clk 0:02:14.1]} 13. Nbd2 {[%clk 0:02:24.9]} 13... Nf4 {[%clk
0:02:08.1]} 14. Qe3 {[%clk 0:02:25.1]} 14... Ng6 {[%clk 0:02:07.4]} 15. b4
{[%clk 0:02:10.1]} 15... Bxf3 {[%clk 0:02:04.1]} 16. Qxf3 {[%clk 0:01:40.3]}
16... Nxe5 {[%clk 0:02:00.1]} 17. Qg3 {[%clk 0:01:38]} 17... Nbd7 {[%clk
0:01:20.9]} 18. Bb2 {[%clk 0:01:36]} 18... Rac8 {[%clk 0:01:18.6]} 19. Rac1
{[%clk 0:01:34.5]} 19... Qb8 {[%clk 0:01:13.3]} 20. Ne4 {[%clk 0:01:32.7]} 20...
Bh4 {[%clk 0:00:36]} 21. Qxh4 {[%clk 0:01:24.7]} 21... Rxc4 {[%clk 0:00:29.4]}
22. Rxc4 {[%clk 0:01:18.8]} 22... Nxc4 {[%clk 0:00:30.3]} 23. Bxg7 {[%clk
0:01:08.7]} 23... Kxg7 {[%clk 0:00:31.2]} 24. Qg5+ {[%clk 0:01:05.4]} 24... Kh8
{[%clk 0:00:30.4]} 25. Rxd7 {[%clk 0:01:06.1]} 25... Qe5 {[%clk 0:00:19.5]} 26.
Qxe5+ {[%clk 0:01:05.3]} 26... Nxe5 {[%clk 0:00:20.4]} 27. Rxb7 {[%clk
0:01:05.4]} 27... Rd8 {[%clk 0:00:19.6]} 28. h3 {[%clk 0:01:02.5]} 28... Ra8
{[%clk 0:00:13.4]} 29. f4 {[%clk 0:00:58.4]} 29... Ng6 {[%clk 0:00:11.7]} 30.
Rxf7 {[%clk 0:00:57.5]} 30... Kg8 {[%clk 0:00:12]} 31. Rd7 {[%clk 0:00:50.5]}
31... Nxf4 {[%clk 0:00:10.6]} 32. Nf6+ {[%clk 0:00:50.6]} 32... Kf8 {[%clk
0:00:11.3]} 33. Nxh7+ {[%clk 0:00:50.8]} 33... Ke8 {[%clk 0:00:11.9]} 34. Nf6+
{[%clk 0:00:50.9]} 34... Kf8 {[%clk 0:00:12.3]} 35. h4 {[%clk 0:00:47.4]} 35...
a5 {[%clk 0:00:10.1]} 36. b5 {[%clk 0:00:46.1]} 36... a4 {[%clk 0:00:09.6]} 37.
b6 {[%clk 0:00:43.4]} 37... Nd5 {[%clk 0:00:08]} 38. b7 {[%clk 0:00:40.4]} 38...
Rb8 {[%clk 0:00:07.4]} 39. Rxd5 {[%clk 0:00:39.3]} 39... exd5 {[%clk 0:00:08.3]}
40. Nd7+ {[%clk 0:00:39.3]} 1-0

[Event "Early-Titled-Tuesday-Blitz-April-16-2024"]
[Site "Chess.com"]
[Date "2024.04.16"]
[Round "11"]
[White "sokidze"]
[Black "baki83"]
[Result "1-0"]
[WhiteElo "2823"]
[BlackElo "2902"]
[TimeControl "180+1"]
[EndTime "10:11:39 PDT"]
[Termination "sokidze won by resignation"]

1. d4 {[%clk 0:03:00.9]} 1... d5 {[%clk 0:02:59.5]} 2. c4 {[%clk 0:03:01.1]}
2... e6 {[%clk 0:02:59.8]} 3. Nf3 {[%clk 0:03:01]} 3... Nf6 {[%clk 0:03:00.2]}
4. g3 {[%clk 0:03:01.6]} 4... Be7 {[%clk 0:03:00.6]} 5. Bg2 {[%clk 0:03:02.2]}
5... O-O {[%clk 0:03:01.2]} 6. O-O {[%clk 0:03:02.8]} 6... c6 {[%clk 0:03:01.7]}
7. Nc3 {[%clk 0:03:00.4]} 7... Nbd7 {[%clk 0:03:00.6]} 8. Qd3 {[%clk 0:02:58.6]}
8... b6 {[%clk 0:03:00.4]} 9. e4 {[%clk 0:02:57.4]} 9... Ba6 {[%clk 0:03:01.1]}
10. b3 {[%clk 0:02:57.5]} 10... dxc4 {[%clk 0:02:59.7]} 11. bxc4 {[%clk
0:02:58]} 11... e5 {[%clk 0:02:59.9]} 12. Ne2 {[%clk 0:02:47.5]} 12... exd4
{[%clk 0:02:45.3]} 13. Nexd4 {[%clk 0:02:14.2]} 13... Nc5 {[%clk 0:02:42.3]} 14.
Qc2 {[%clk 0:02:13.4]} 14... Nfxe4 {[%clk 0:02:23.2]} 15. Nxc6 {[%clk 0:02:06]}
15... Qc7 {[%clk 0:02:23.7]} 16. Nfd4 {[%clk 0:01:50.3]} 16... f5 {[%clk
0:02:04.7]} 17. Nxe7+ {[%clk 0:01:10.6]} 17... Qxe7 {[%clk 0:02:04.5]} 18. Bb2
{[%clk 0:01:11.3]} 18... Rae8 {[%clk 0:02:01.9]} 19. Rfe1 {[%clk 0:01:09.1]}
19... Qf7 {[%clk 0:01:57.6]} 20. Nb5 {[%clk 0:01:01.2]} 20... Rd8 {[%clk
0:01:47.3]} 21. Rad1 {[%clk 0:00:48.2]} 21... h6 {[%clk 0:01:41.6]} 22. a4
{[%clk 0:00:45.8]} 22... Bb7 {[%clk 0:01:37.1]} 23. f3 {[%clk 0:00:38.3]} 23...
Ng5 {[%clk 0:01:29.1]} 24. Rf1 {[%clk 0:00:12.4]} 24... Qh5 {[%clk 0:01:04.1]}
25. Qc3 {[%clk 0:00:08]} 25... Nce6 {[%clk 0:01:04.2]} 26. Rxd8 {[%clk
0:00:06.3]} 26... Rxd8 {[%clk 0:01:03.6]} 27. h4 {[%clk 0:00:07]} 27... Nf7
{[%clk 0:00:58.4]} 28. Re1 {[%clk 0:00:07.5]} 28... f4 {[%clk 0:00:34.1]} 29.
Rxe6 {[%clk 0:00:06.8]} 29... Rd1+ {[%clk 0:00:34.2]} 30. Kh2 {[%clk 0:00:01.8]}
30... fxg3+ {[%clk 0:00:34.5]} 31. Kxg3 {[%clk 0:00:02.7]} 31... Ne5 {[%clk
0:00:17.1]} 32. Qxe5 {[%clk 0:00:03.2]} 32... Qxe5+ {[%clk 0:00:17.2]} 33. Bxe5
{[%clk 0:00:03.9]} 1-0

[Event "Early-Titled-Tuesday-Blitz-April-16-2024"]
[Site "Chess.com"]
[Date "2024.04.16"]
[Round "11"]
[White "Silvederione"]
[Black "Knightmare1014"]
[Result "1-0"]
[WhiteElo "2522"]
[BlackElo "2327"]
[TimeControl "180+1"]
[EndTime "10:11:42 PDT"]
[Termination "Silvederione won by checkmate"]

1. d4 {[%clk 0:03:00.9]} 1... d5 {[%clk 0:02:59.9]} 2. Nc3 {[%clk 0:03:00.7]}
2... Nf6 {[%clk 0:02:58.9]} 3. Bf4 {[%clk 0:03:01.2]} 3... a6 {[%clk 0:02:59]}
4. e3 {[%clk 0:03:01.7]} 4... c5 {[%clk 0:02:59.2]} 5. dxc5 {[%clk 0:03:02.6]}
5... Nc6 {[%clk 0:02:58.4]} 6. a3 {[%clk 0:03:02.2]} 6... e5 {[%clk 0:02:57.8]}
7. Bg5 {[%clk 0:03:01.8]} 7... d4 {[%clk 0:02:52.1]} 8. exd4 {[%clk 0:03:00.4]}
8... exd4 {[%clk 0:02:46.1]} 9. Ne4 {[%clk 0:02:59.3]} 9... Qe7 {[%clk
0:02:39.6]} 10. Bd3 {[%clk 0:02:55.4]} 10... Qe6 {[%clk 0:01:53.6]} 11. Bxf6
{[%clk 0:02:49.8]} 11... gxf6 {[%clk 0:01:53.3]} 12. Qe2 {[%clk 0:02:48.9]}
12... f5 {[%clk 0:01:52.4]} 13. Nd6+ {[%clk 0:02:15.6]} 13... Bxd6 {[%clk
0:01:51.6]} 14. cxd6 {[%clk 0:02:16.5]} 14... Kd7 {[%clk 0:01:44]} 15. O-O-O
{[%clk 0:02:11.4]} 15... Qxe2 {[%clk 0:01:42.7]} 16. Nxe2 {[%clk 0:02:10.2]}
16... Kxd6 {[%clk 0:01:42.5]} 17. Bc4 {[%clk 0:01:58.9]} 17... Be6 {[%clk
0:01:36.3]} 18. Bxe6 {[%clk 0:01:56.8]} 18... fxe6 {[%clk 0:01:34.8]} 19. Nxd4
{[%clk 0:01:57.7]} 19... Nxd4 {[%clk 0:01:33.9]} 20. Rxd4+ {[%clk 0:01:58.6]}
20... Ke7 {[%clk 0:01:34.1]} 21. Rhd1 {[%clk 0:01:56.2]} 21... b5 {[%clk
0:01:30.1]} 22. Rd7+ {[%clk 0:01:50.4]} 22... Kf6 {[%clk 0:01:28.5]} 23. f4
{[%clk 0:01:50.5]} 23... h5 {[%clk 0:01:21.4]} 24. Rc7 {[%clk 0:01:42.2]} 24...
Rhg8 {[%clk 0:01:17.7]} 25. Rdd7 {[%clk 0:01:36.6]} 25... Raf8 {[%clk
0:01:15.6]} 26. g3 {[%clk 0:01:26]} 26... h4 {[%clk 0:01:13.6]} 27. gxh4 {[%clk
0:01:07.9]} 27... Rg4 {[%clk 0:01:12.3]} 28. h5 {[%clk 0:00:39.9]} 28... Rxf4
{[%clk 0:01:11.5]} 29. h6 {[%clk 0:00:39.8]} 29... Rh4 {[%clk 0:01:11.4]} 30. h7
{[%clk 0:00:39.6]} 30... Rxh2 {[%clk 0:01:11.3]} 31. b4 {[%clk 0:00:39.6]} 31...
f4 {[%clk 0:01:07.2]} 32. Rg7 {[%clk 0:00:38.9]} 32... Rh8 {[%clk 0:00:53.2]}
33. Kb2 {[%clk 0:00:36.3]} 33... f3 {[%clk 0:00:41.5]} 34. Rgf7+ {[%clk
0:00:28]} 34... Ke5 {[%clk 0:00:40.8]} 35. Rxf3 {[%clk 0:00:28.5]} 35... R8xh7
{[%clk 0:00:40.6]} 36. Rc6 {[%clk 0:00:28]} 36... Ra7 {[%clk 0:00:31.2]} 37.
Re3+ {[%clk 0:00:27.7]} 37... Kd5 {[%clk 0:00:31.5]} 38. Rexe6 {[%clk 0:00:20]}
38... a5 {[%clk 0:00:31.5]} 39. Rcd6+ {[%clk 0:00:20]} 39... Kc4 {[%clk
0:00:27.8]} 40. Re4# {[%clk 0:00:20.4]} 1-0

[Event "Early-Titled-Tuesday-Blitz-April-16-2024"]
[Site "Chess.com"]
[Date "2024.04.16"]
[Round "11"]
[White "dosto07"]
[Black "Yushko_Olga"]
[Result "0-1"]
[WhiteElo "2501"]
[BlackElo "2299"]
[TimeControl "180+1"]
[EndTime "10:11:42 PDT"]
[Termination "Yushko_Olga won on time"]

1. e4 {[%clk 0:03:00.9]} 1... Nf6 {[%clk 0:02:58.6]} 2. e5 {[%clk 0:03:00.3]}
2... Nd5 {[%clk 0:02:58.3]} 3. d4 {[%clk 0:03:01.2]} 3... d6 {[%clk 0:02:55.1]}
4. Nf3 {[%clk 0:03:01.6]} 4... dxe5 {[%clk 0:02:53]} 5. Nxe5 {[%clk 0:03:01.9]}
5... g6 {[%clk 0:02:50.6]} 6. Bc4 {[%clk 0:03:01.2]} 6... Bg7 {[%clk 0:02:47.6]}
7. Nxf7 {[%clk 0:02:43.7]} 7... Kxf7 {[%clk 0:02:47.5]} 8. Qf3+ {[%clk
0:02:43.8]} 8... Ke8 {[%clk 0:02:44.7]} 9. Bxd5 {[%clk 0:02:40.4]} 9... Rf8
{[%clk 0:02:41.4]} 10. Qe4 {[%clk 0:02:18.7]} 10... Bf5 {[%clk 0:02:38.7]} 11.
Qf3 {[%clk 0:02:15.1]} 11... Bxc2 {[%clk 0:02:32.3]} 12. Qe2 {[%clk 0:01:53]}
12... Qxd5 {[%clk 0:02:15.7]} 13. Qxc2 {[%clk 0:01:52.9]} 13... Qxg2 {[%clk
0:02:15.3]} 14. Rf1 {[%clk 0:01:51.7]} 14... Bxd4 {[%clk 0:02:12.9]} 15. Nc3
{[%clk 0:01:41.6]} 15... Nc6 {[%clk 0:01:43]} 16. Bh6 {[%clk 0:01:38.9]} 16...
Nb4 {[%clk 0:01:40.2]} 17. Qa4+ {[%clk 0:01:36.2]} 17... b5 {[%clk 0:01:37]} 18.
Qxb5+ {[%clk 0:01:21]} 18... c6 {[%clk 0:01:37.6]} 19. Qxb4 {[%clk 0:01:20.5]}
19... Bxf2+ {[%clk 0:01:32.9]} 20. Rxf2 {[%clk 0:01:09.9]} 20... Qg1+ {[%clk
0:01:16.8]} 21. Kd2 {[%clk 0:01:03.6]} 21... Rxf2+ {[%clk 0:01:13.7]} 22. Ne2
{[%clk 0:01:01.1]} 22... Rd8+ {[%clk 0:01:09.6]} 23. Kc3 {[%clk 0:00:53.3]}
23... Rf3+ {[%clk 0:01:06.2]} 24. Kc4 {[%clk 0:00:44.6]} 24... Qxa1 {[%clk
0:00:56.5]} 25. Bg5 {[%clk 0:00:38.9]} 25... Rf7 {[%clk 0:00:40.6]} 26. Qb7
{[%clk 0:00:31.2]} 26... Qh1 {[%clk 0:00:37.3]} 27. Kb3 {[%clk 0:00:12.2]} 27...
Qd5+ {[%clk 0:00:34.8]} 28. Ka3 {[%clk 0:00:11.1]} 28... Rf3+ {[%clk 0:00:33.6]}
29. Nc3 {[%clk 0:00:10.8]} 29... Qc5+ {[%clk 0:00:29]} 30. Ka4 {[%clk
0:00:07.4]} 30... Rd4+ {[%clk 0:00:26.7]} 31. b4 {[%clk 0:00:05]} 31... Rxc3
{[%clk 0:00:19.5]} 0-1

[Event "Early-Titled-Tuesday-Blitz-April-16-2024"]
[Site "Chess.com"]
[Date "2024.04.16"]
[Round "11"]
[White "ATM622"]
[Black "pfalcon1949"]
[Result "1-0"]
[WhiteElo "2428"]
[BlackElo "1957"]
[TimeControl "180+1"]
[EndTime "10:11:43 PDT"]
[Termination "ATM622 won on time"]

1. d4 {[%clk 0:03:00.9]} 1... Nf6 {[%clk 0:02:59.2]} 2. c4 {[%clk 0:03:00.1]}
2... c5 {[%clk 0:02:58.8]} 3. d5 {[%clk 0:02:59.9]} 3... b5 {[%clk 0:02:58.5]}
4. cxb5 {[%clk 0:02:59.8]} 4... a6 {[%clk 0:02:57.7]} 5. e3 {[%clk 0:02:58.6]}
5... g6 {[%clk 0:02:55.5]} 6. Nf3 {[%clk 0:02:56.2]} 6... Bg7 {[%clk 0:02:55.5]}
7. Nc3 {[%clk 0:02:56.6]} 7... O-O {[%clk 0:02:55.3]} 8. a4 {[%clk 0:02:52.6]}
8... Bb7 {[%clk 0:02:54.9]} 9. Be2 {[%clk 0:02:47.7]} 9... axb5 {[%clk
0:02:52.1]} 10. Bxb5 {[%clk 0:02:46.6]} 10... e6 {[%clk 0:02:47.1]} 11. dxe6
{[%clk 0:02:39.2]} 11... fxe6 {[%clk 0:02:46.9]} 12. O-O {[%clk 0:02:34.3]}
12... Nd5 {[%clk 0:02:42.2]} 13. Ne4 {[%clk 0:02:22.3]} 13... Nb4 {[%clk
0:02:21.4]} 14. Nfd2 {[%clk 0:02:03.2]} 14... N8a6 {[%clk 0:02:09.6]} 15. f4
{[%clk 0:01:51.4]} 15... Rc8 {[%clk 0:02:03.4]} 16. Nd6 {[%clk 0:01:45.9]} 16...
Rc7 {[%clk 0:01:53.4]} 17. N2c4 {[%clk 0:01:42.9]} 17... Bd5 {[%clk 0:01:47.2]}
18. e4 {[%clk 0:01:32.5]} 18... Bd4+ {[%clk 0:01:41.8]} 19. Kh1 {[%clk 0:01:29]}
19... Ba8 {[%clk 0:01:35.3]} 20. Be3 {[%clk 0:01:21.4]} 20... Bg7 {[%clk
0:01:15.9]} 21. Qd2 {[%clk 0:01:15.3]} 21... Qh4 {[%clk 0:01:08.4]} 22. Rad1
{[%clk 0:00:51.6]} 22... Bc6 {[%clk 0:00:58.7]} 23. Qe2 {[%clk 0:00:41.8]} 23...
Bxb5 {[%clk 0:00:48]} 24. axb5 {[%clk 0:00:41.4]} 24... Nb8 {[%clk 0:00:47.9]}
25. b6 {[%clk 0:00:37.9]} 25... Rc6 {[%clk 0:00:43.9]} 26. Na5 {[%clk 0:00:38]}
26... Rxb6 {[%clk 0:00:36.5]} 27. Bxc5 {[%clk 0:00:37.4]} 27... Rxd6 {[%clk
0:00:13.5]} 28. Bxd6 {[%clk 0:00:36.1]} 28... N8c6 {[%clk 0:00:13.1]} 29. Bxf8
{[%clk 0:00:35.6]} 29... Bxf8 {[%clk 0:00:14]} 30. Rxd7 {[%clk 0:00:34.8]} 30...
Qh6 {[%clk 0:00:09.3]} 31. f5 {[%clk 0:00:30.5]} 31... gxf5 {[%clk 0:00:08.3]}
32. exf5 {[%clk 0:00:27.9]} 32... exf5 {[%clk 0:00:05.7]} 33. Qc4+ {[%clk
0:00:26.8]} 33... Kh8 {[%clk 0:00:04.7]} 34. Qf7 {[%clk 0:00:26.7]} 34... Bg7
{[%clk 0:00:01.3]} 35. Qe8+ {[%clk 0:00:24.3]} 35... Bf8 {[%clk 0:00:01.3]} 36.
Rf7 {[%clk 0:00:24.4]} 1-0

[Event "Early-Titled-Tuesday-Blitz-April-16-2024"]
[Site "Chess.com"]
[Date "2024.04.16"]
[Round "11"]
[White "mertfelin"]
[Black "MIss_MIaMI"]
[Result "1-0"]
[WhiteElo "2262"]
[BlackElo "2347"]
[TimeControl "180+1"]
[EndTime "10:11:43 PDT"]
[Termination "mertfelin won by resignation"]

1. e4 {[%clk 0:02:56.6]} 1... c5 {[%clk 0:03:00.3]} 2. Nf3 {[%clk 0:02:56.3]}
2... e6 {[%clk 0:03:00.8]} 3. d4 {[%clk 0:02:56.6]} 3... cxd4 {[%clk 0:03:01.7]}
4. Nxd4 {[%clk 0:02:57.5]} 4... a6 {[%clk 0:03:02.3]} 5. c4 {[%clk 0:02:57.7]}
5... Nf6 {[%clk 0:03:02]} 6. Nc3 {[%clk 0:02:58.3]} 6... Bb4 {[%clk 0:03:02.2]}
7. Bd3 {[%clk 0:02:56.5]} 7... Qc7 {[%clk 0:03:01.1]} 8. O-O {[%clk 0:02:55.4]}
8... O-O {[%clk 0:02:59.3]} 9. Qe2 {[%clk 0:02:54.7]} 9... d6 {[%clk 0:02:45]}
10. Bd2 {[%clk 0:02:52.7]} 10... Bc5 {[%clk 0:02:41.1]} 11. Nf3 {[%clk
0:02:50.9]} 11... Nc6 {[%clk 0:02:36.7]} 12. Rac1 {[%clk 0:02:44.6]} 12... Ne5
{[%clk 0:02:30.2]} 13. Bb1 {[%clk 0:02:43.9]} 13... Ba7 {[%clk 0:02:22.2]} 14.
b3 {[%clk 0:02:40.4]} 14... Bd7 {[%clk 0:02:20.1]} 15. Be3 {[%clk 0:02:30.1]}
15... Bc6 {[%clk 0:01:36.4]} 16. Bxa7 {[%clk 0:02:29.1]} 16... Rxa7 {[%clk
0:01:37.3]} 17. Nd4 {[%clk 0:02:29]} 17... Bd7 {[%clk 0:01:34.8]} 18. h3 {[%clk
0:02:28.4]} 18... Qc5 {[%clk 0:01:26.5]} 19. Rfd1 {[%clk 0:02:23.7]} 19... Ng6
{[%clk 0:01:25.9]} 20. Qe3 {[%clk 0:02:04.1]} 20... Raa8 {[%clk 0:01:11.8]} 21.
Kh1 {[%clk 0:01:54.1]} 21... Rad8 {[%clk 0:01:10.5]} 22. Rd2 {[%clk 0:01:49.6]}
22... Nh5 {[%clk 0:00:53.8]} 23. Rcd1 {[%clk 0:01:41.2]} 23... Bc8 {[%clk
0:00:46.1]} 24. Nc2 {[%clk 0:01:24.2]} 24... Qc7 {[%clk 0:00:37.3]} 25. Qg5
{[%clk 0:01:16.9]} 25... Nf6 {[%clk 0:00:37]} 26. Ne3 {[%clk 0:01:13.8]} 26...
h6 {[%clk 0:00:37.3]} 27. Qg3 {[%clk 0:01:13]} 27... Ne8 {[%clk 0:00:34]} 28. f4
{[%clk 0:01:06.6]} 28... Bd7 {[%clk 0:00:29]} 29. e5 {[%clk 0:00:52.9]} 29...
dxe5 {[%clk 0:00:17.2]} 30. Bxg6 {[%clk 0:00:41.1]} 30... exf4 {[%clk 0:00:16]}
31. Qh2 {[%clk 0:00:35.2]} 31... fxg6 {[%clk 0:00:16.4]} 32. Ng4 {[%clk
0:00:33.9]} 32... Nf6 {[%clk 0:00:10.7]} 33. Nxf6+ {[%clk 0:00:33.8]} 33... gxf6
{[%clk 0:00:11.3]} 34. Ne4 {[%clk 0:00:34.3]} 34... f5 {[%clk 0:00:10.2]} 35.
Nd6 {[%clk 0:00:34.4]} 35... Bc6 {[%clk 0:00:09.5]} 36. Qxf4 {[%clk 0:00:35]}
36... Kg7 {[%clk 0:00:08.4]} 37. Nxf5+ {[%clk 0:00:29.7]} 37... exf5 {[%clk
0:00:07]} 38. Qxc7+ {[%clk 0:00:30.2]} 38... Bd7 {[%clk 0:00:07]} 39. Qxd8
{[%clk 0:00:28.1]} 39... Rxd8 {[%clk 0:00:06.6]} 40. Rxd7+ {[%clk 0:00:28.6]}
40... Rxd7 {[%clk 0:00:07.5]} 41. Rxd7+ {[%clk 0:00:29.1]} 41... Kf6 {[%clk
0:00:08.4]} 42. Rxb7 {[%clk 0:00:29.7]} 1-0

[Event "Early-Titled-Tuesday-Blitz-April-16-2024"]
[Site "Chess.com"]
[Date "2024.04.16"]
[Round "11"]
[White "Meri-Arabidze"]
[Black "2Coaches1Profile"]
[Result "1-0"]
[WhiteElo "2677"]
[BlackElo "2554"]
[TimeControl "180+1"]
[EndTime "10:11:49 PDT"]
[Termination "Meri-Arabidze won on time"]

1. Nf3 {[%clk 0:02:57.7]} 1... g5 {[%clk 0:02:56.2]} 2. b3 {[%clk 0:02:58.6]}
2... g4 {[%clk 0:02:54.9]} 3. Ng1 {[%clk 0:02:56.4]} 3... Bg7 {[%clk 0:02:54.1]}
4. d4 {[%clk 0:02:56.5]} 4... d5 {[%clk 0:02:52.8]} 5. Nc3 {[%clk 0:02:53.8]}
5... c5 {[%clk 0:02:43.6]} 6. e3 {[%clk 0:02:54.1]} 6... Nc6 {[%clk 0:02:42.7]}
7. Nge2 {[%clk 0:02:49.5]} 7... h5 {[%clk 0:02:35.1]} 8. Bb2 {[%clk 0:02:46]}
8... cxd4 {[%clk 0:02:31.5]} 9. exd4 {[%clk 0:02:32.8]} 9... Bf5 {[%clk
0:01:51.9]} 10. Ng3 {[%clk 0:02:11.6]} 10... Bg6 {[%clk 0:01:51.3]} 11. Bb5
{[%clk 0:02:11.3]} 11... e6 {[%clk 0:01:46.7]} 12. Nge2 {[%clk 0:02:02.5]} 12...
Ne7 {[%clk 0:01:46.5]} 13. Nf4 {[%clk 0:01:58.4]} 13... Bf5 {[%clk 0:01:38.6]}
14. O-O {[%clk 0:01:52.6]} 14... a6 {[%clk 0:01:36.4]} 15. Bxc6+ {[%clk
0:01:45.2]} 15... Nxc6 {[%clk 0:01:37.3]} 16. Nce2 {[%clk 0:01:36.7]} 16... h4
{[%clk 0:01:34.8]} 17. c4 {[%clk 0:01:34.8]} 17... h3 {[%clk 0:01:21.3]} 18. g3
{[%clk 0:01:34.7]} 18... Bh6 {[%clk 0:00:57.7]} 19. Re1 {[%clk 0:01:30.5]} 19...
Ne7 {[%clk 0:00:50.4]} 20. Ba3 {[%clk 0:01:27.4]} 20... Ng6 {[%clk 0:00:26.4]}
21. Bc1 {[%clk 0:01:03.5]} 21... Be4 {[%clk 0:00:21.4]} 22. Nxg6 {[%clk
0:01:01.3]} 22... fxg6 {[%clk 0:00:18.1]} 23. Bxh6 {[%clk 0:01:00.2]} 23... Rxh6
{[%clk 0:00:18.6]} 24. Nf4 {[%clk 0:00:55.9]} 24... g5 {[%clk 0:00:16.3]} 25.
cxd5 {[%clk 0:00:31.5]} 25... gxf4 {[%clk 0:00:15.9]} 26. Rxe4 {[%clk
0:00:31.4]} 26... Qxd5 {[%clk 0:00:16.4]} 27. Qd3 {[%clk 0:00:26.5]} 27... O-O-O
{[%clk 0:00:13.9]} 28. Rae1 {[%clk 0:00:25.7]} 28... Kb8 {[%clk 0:00:12.1]} 29.
Qc4 {[%clk 0:00:25.2]} 29... fxg3 {[%clk 0:00:08.7]} 30. fxg3 {[%clk 0:00:26.1]}
30... Qf5 {[%clk 0:00:05.5]} 31. Rf4 {[%clk 0:00:22.9]} 31... Qd5 {[%clk
0:00:02.5]} 32. Qxd5 {[%clk 0:00:22]} 32... Rxd5 {[%clk 0:00:02]} 33. Rxg4
{[%clk 0:00:22.6]} 33... Rf6 {[%clk 0:00:01.5]} 34. Rh4 {[%clk 0:00:19.8]} 1-0